[Event "Frauenbundesliga 2023-24"]
[Site "Deizisau"]
[Date "2024.03.23"]
[Round "7.9"]
[White "Daemering, Katrin"]
[Black "Milliet, Sophie"]
[Result "0-1"]
[ECO "C54"]
[WhiteElo "1983"]
[BlackElo "2386"]
[Annotator "RC"]
[PlyCount "82"]
[EventDate "2023.10.09"]
[EventType "team-tourn"]
[EventCountry "GER"]
[SourceTitle "playchess.com"]
[Source "ChessBase"]
[SourceQuality "1"]
[WhiteTeam "SV Weißblau Allianz Leipzig"]
[BlackTeam "SK Schwäbisch Hall"]
[TimeControl "40/5400+30:1800+30"]

1. e4 {[%emt 0:00:03]} e5 {[%emt 0:00:06]} 2. Nf3 {[%emt 0:00:12]} Nc6 {[%emt 0:00:05]} 3. Bc4 {[%emt 0:00:14]} Nf6 {[%emt 0:00:07]} 4. d3 {[%emt 0:01:50]} Bc5 {[%emt 0:00:24]} 5. O-O {[%emt 0:00:09]} d6 {[%emt 0:00:54]} 6. c3 {[%emt 0:01:07]} a5 {[%emt 0:02:51]} 7. h3 {[%emt 0:01:49]} O-O {[%emt 0:05:33]} 8. d4 {[%emt 0:08:52]} Ba7 {[%emt 0:00:47]} 9. Re1 {[%emt 0:01:29]} h6 {[%emt 0:09:41]} 10. Na3 {[%emt 0:14:49]} exd4 {[%emt 0:05:20]} 11. cxd4 {[%emt 0:01:30]} Nxe4 {[%emt 0:01:29]} 12. Rxe4 {[%emt 0:14:00]} d5 {[%emt 0:00:04]} 13. Re2 {[%emt 0:01:22]} dxc4 {[%emt 0:00:07]} 14. d5 {[%emt 0:06:58]} Ne7 {[%emt 0:14:05]} 15. Rd2 {[%emt 0:01:32]} Bc5 {[%emt 0:06:49]} 16. Nxc4 {[%emt 0:03:08]} Bb4 {[%emt 0:03:15]} 17. Rd4 {[%emt 0:04:54]} Nf5 {[%emt 0:02:00]} 18. Rd3 {[%emt 0:03:54]} Nd6 {[%emt 0:03:35]} 19. Ne3 {[%emt 0:05:26]} Re8 {[%emt 0:04:47]} 20. Bd2 {[%emt 0:06:47]} Bc5 {[%emt 0:00:31]} 21. Rc1 {[%emt 0:01:11]} Ne4 {[%emt 0:03:08]} 22. Be1 {[%emt 0:02:56]} b6 {[%emt 0:08:12]} 23. b3 {[%emt 0:07:36]} Ba6 {[%emt 0:01:08]} 24. Nc4 {[%emt 0:00:21]} Qf6 {[%emt 0:00:51]} 25. Rc2 {[%emt 0:02:41]} Rad8 {[%emt 0:10:00]} 26. Nh2 {[%emt 0:01:12]} Qg6 {[%emt 0:03:55]} 27. Ng4 {[%emt 0:02:14]} f6 {[%emt 0:03:14]} 28. Nge3 {[%emt 0:02:02]} f5 {[%emt 0:02:04]} 29. Qf3 {[%emt 0:00:26]} Ng5 {[%emt 0:00:44]} 30. Qd1 {[%emt 0:01:43]} f4 {[%emt 0:05:22]} 31. Ng4 {[%emt 0:01:08]} Rxe1+ {[%emt 0:00:09]} 32. Qxe1 {[%emt 0:00:03]} Qxd3 {[%emt 0:00:03]} 33. Rd2 {[%emt 0:00:50]} Qf5 {[%emt 0:01:13]} 34. Re2 {[%emt 0:00:32]} f3 {[%emt 0:02:39]} 35. Re5 {[%emt 0:00:18]} Qg6 {[%emt 0:01:18]} 36. h4 {[%emt 0:00:42]} Nh7 {[%emt 0:00:13]} 37. gxf3 {[%emt 0:00:36]} Bxc4 {[%emt 0:00:32]} 38. bxc4 {[%emt 0:00:16]} h5 {[%emt 0:00:35]} 39. Re6 {[%emt 0:00:30]} Nf6 {[%emt 0:00:31]} 40. Re5 {[%emt 0:01:27]} hxg4 {[%emt 0:00:19]} 41. Rg5 {[%emt 0:30:13]} Qf7 {[%emt 0:31:05]} 0-1

[Event "Frauenbundesliga 2023-24"]
[Site "Deizisau"]
[Date "2024.03.23"]
[Round "7.10"]
[White "Melia, Salome"]
[Black "Schulz, Petra"]
[Result "1-0"]
[ECO "C07"]
[WhiteElo "2337"]
[BlackElo "2006"]
[Annotator "RC"]
[PlyCount "47"]
[EventDate "2023.10.09"]
[EventType "team-tourn"]
[EventCountry "GER"]
[SourceTitle "playchess.com"]
[Source "ChessBase"]
[SourceQuality "1"]
[WhiteTeam "SK Schwäbisch Hall"]
[BlackTeam "SV Weißblau Allianz Leipzig"]
[TimeControl "40/5400+30:1800+30"]

1. e4 {[%emt 0:00:04]} e6 {[%emt 0:00:04]} 2. d4 {[%emt 0:00:05]} d5 {[%emt 0:00:03]} 3. Nd2 {[%emt 0:01:56]} c5 {[%emt 0:00:25]} 4. exd5 {[%emt 0:00:11]} Qxd5 {[%emt 0:00:19]} 5. dxc5 {[%emt 0:00:45]} Bxc5 {[%emt 0:02:48]} 6. Ngf3 {[%emt 0:00:08]} Nf6 7. Bc4 {[%emt 0:00:30]} Qd8 8. O-O {[%emt 0:00:30]} O-O 9. Qe2 {[%emt 0:00:30]} Nc6 10. Ne4 {[%emt 0:00:30]} Nxe4 11. Qxe4 {[%emt 0:00:30]} Qe7 12. Ng5 {[%emt 0:00:30]} g6 13. Qh4 {[%emt 0:00:30]} h5 14. c3 {[%emt 0:00:30]} Ne5 15. Be2 {[%emt 0:00:30]} f6 16. Ne4 {[%emt 0:00:30]} Kg7 17. Nxc5 {[%emt 0:00:30]} Qxc5 18. Be3 {[%emt 0:00:30]} Qe7 19. Rad1 {[%emt 0:00:30]} Bd7 20. Qf4 {[%emt 0:00:30]} Nf7 21. Qc7 {[%emt 0:00:30]} Rfd8 22. Qxb7 {[%emt 0:00:30]} Rab8 23. Qxa7 {[%emt 0:00:30]} Rxb2 24. Bb6 {[%emt 0:00:30]} 1-0

[Event "Frauenbundesliga 2023-24"]
[Site "Deizisau"]
[Date "2024.03.23"]
[Round "7.11"]
[White "Just, Anita"]
[Black "Daulyte-Cornette, Deimante"]
[Result "0-1"]
[ECO "B33"]
[WhiteElo "1873"]
[BlackElo "2375"]
[Annotator "RC"]
[PlyCount "120"]
[EventDate "2023.10.09"]
[EventType "team-tourn"]
[EventCountry "GER"]
[SourceTitle "playchess.com"]
[Source "ChessBase"]
[SourceQuality "1"]
[WhiteTeam "SV Weißblau Allianz Leipzig"]
[BlackTeam "SK Schwäbisch Hall"]
[TimeControl "40/5400+30:1800+30"]

1. e4 {[%emt 0:00:02]} c5 {[%emt 0:00:09]} 2. Nf3 {[%emt 0:00:05]} Nc6 {[%emt 0:00:07]} 3. d4 {[%emt 0:00:06]} cxd4 {[%emt 0:00:08]} 4. Nxd4 {[%emt 0:00:05]} Nf6 {[%emt 0:00:16]} 5. Nc3 {[%emt 0:00:12]} e5 {[%emt 0:00:14]} 6. Ndb5 {[%emt 0:00:37]} d6 {[%emt 0:00:14]} 7. Bg5 {[%emt 0:00:38]} a6 {[%emt 0:00:34]} 8. Na3 {[%emt 0:01:33]} Be6 {[%emt 0:00:13]} 9. Nc4 {[%emt 0:01:26]} Rb8 {[%emt 0:00:31]} 10. Ne3 {[%emt 0:01:22]} Be7 {[%emt 0:00:50]} 11. Bxf6 {[%emt 0:03:38]} Bxf6 {[%emt 0:00:16]} 12. Ned5 {[%emt 0:01:22]} Bg5 {[%emt 0:01:35]} 13. g3 {[%emt 0:04:21]} h5 {[%emt 0:04:57]} 14. Bg2 {[%emt 0:06:08]} h4 {[%emt 0:02:25]} 15. O-O {[%emt 0:02:48]} h3 {[%emt 0:01:13]} 16. Bf3 {[%emt 0:02:26]} Nd4 {[%emt 0:10:14]} 17. Bg4 {[%emt 0:04:24]} Bxg4 {[%emt 0:12:38]} 18. Qxg4 {[%emt 0:00:08]} Nxc2 {[%emt 0:00:40]} 19. Rad1 {[%emt 0:00:38]} Rh6 {[%emt 0:03:29]} 20. Ne2 {[%emt 0:06:45]} Kf8 {[%emt 0:05:03]} 21. Rd3 {[%emt 0:06:22]} Rc8 {[%emt 0:07:26]} 22. f4 {[%emt 0:05:23]} Bf6 {[%emt 0:05:54]} 23. Nxf6 {[%emt 0:13:04]} Rxf6 {[%emt 0:00:15]} 24. Qxh3 {[%emt 0:01:14]} Rh6 {[%emt 0:11:44]} 25. Qf5 {[%emt 0:03:11]} exf4 {[%emt 0:05:06]} 26. Nxf4 {[%emt 0:06:10]} Rf6 {[%emt 0:09:53]} 27. Qh7 {[%emt 0:04:03]} Rh6 {[%emt 0:08:27]} 28. Ng6+ {[%emt 0:02:19]} Rxg6 {[%emt 0:01:23]} 29. Qxg6 {[%emt 0:00:07]} f6 {[%emt 0:00:12]} 30. Qf5 {[%emt 0:04:58]} Qb6+ {[%emt 0:02:07]} 31. Kh1 {[%emt 0:01:09]} Re8 {[%emt 0:00:19]} 32. Qd7 {[%emt 0:05:01]} Nd4 {[%emt 0:01:29]} 33. Rfd1 {[%emt 0:02:09]} Rxe4 {[%emt 0:00:45]} 34. Qa4 {[%emt 0:03:08]} Qc5 {[%emt 0:03:23]} 35. Rxd4 {[%emt 0:05:25]} b5 {[%emt 0:00:05]} 36. Qxa6 {[%emt 0:01:13]} Rxd4 {[%emt 0:00:06]} 37. Rxd4 {[%emt 0:00:48]} Qc1+ {[%emt 0:02:06]} 38. Kg2 {[%emt 0:00:57]} Qxb2+ {[%emt 0:00:05]} 39. Kh3 {[%emt 0:01:44]} Qxd4 {[%emt 0:00:05]} 40. Qxb5 {[%emt 0:00:34]} Qe5 {[%emt 0:02:39]} 41. a4 {[%emt 0:09:39]} Qxb5 {[%emt 0:09:34]} 42. axb5 {[%emt 0:00:06]} Ke7 {[%emt 0:00:04]} 43. Kg4 {[%emt 0:00:45]} d5 {[%emt 0:00:11]} 44. Kf4 {[%emt 0:05:27]} Kd6 {[%emt 0:00:32]} 45. Ke3 {[%emt 0:01:44]} Kc5 {[%emt 0:00:12]} 46. h4 {[%emt 0:05:46]} Kxb5 {[%emt 0:00:26]} 47. Kd4 {[%emt 0:00:36]} Kc6 {[%emt 0:00:06]} 48. h5 {[%emt 0:01:00]} Kd6 {[%emt 0:00:33]} 49. Ke3 {[%emt 0:07:09]} Ke5 {[%emt 0:00:21]} 50. g4 {[%emt 0:00:30]} d4+ {[%emt 0:00:32]} 51. Kf3 {[%emt 0:01:01]} d3 {[%emt 0:03:41]} 52. g5 {[%emt 0:01:03]} fxg5 {[%emt 0:00:13]} 53. Ke3 {[%emt 0:00:37]} g4 {[%emt 0:00:40]} 54. Kxd3 {[%emt 0:00:21]} Kf4 {[%emt 0:00:04]} 55. Ke2 {[%emt 0:00:29]} Kg3 {[%emt 0:00:05]} 56. Ke3 {[%emt 0:01:08]} Kh2 {[%emt 0:00:19]} 57. Kf4 {[%emt 0:00:35]} g3 {[%emt 0:00:05]} 58. Kg5 {[%emt 0:00:09]} g2 {[%emt 0:00:06]} 59. Kg6 {[%emt 0:00:53]} g1=Q+ {[%emt 0:00:07]} 60. Kh7 {[%emt 0:00:11]} Qg5 {[%emt 0:00:12]} 0-1

[Event "Frauenbundesliga 2023-24"]
[Site "Deizisau"]
[Date "2024.03.23"]
[Round "7.12"]
[White "Papp, Petra"]
[Black "Germann, Heike"]
[Result "1-0"]
[ECO "D00"]
[WhiteElo "2267"]
[BlackElo "1978"]
[Annotator "RC"]
[PlyCount "81"]
[EventDate "2023.10.09"]
[EventType "team-tourn"]
[EventCountry "GER"]
[SourceTitle "playchess.com"]
[Source "ChessBase"]
[SourceQuality "1"]
[WhiteTeam "SK Schwäbisch Hall"]
[BlackTeam "SV Weißblau Allianz Leipzig"]
[TimeControl "40/5400+30:1800+30"]

1. d4 {[%emt 0:00:18]} Nf6 {[%emt 0:00:03]} 2. Bf4 {[%emt 0:00:12]} d5 {[%emt 0:00:19]} 3. e3 {[%emt 0:00:52]} Bf5 {[%emt 0:00:30]} 4. c4 {[%emt 0:01:07]} e6 {[%emt 0:01:56]} 5. Qb3 {[%emt 0:02:29]} Qc8 {[%emt 0:06:44]} 6. Nc3 {[%emt 0:04:03]} c6 {[%emt 0:04:37]} 7. Rc1 {[%emt 0:00:08]} a6 {[%emt 0:06:34]} 8. f3 {[%emt 0:07:20]} Be7 {[%emt 0:09:08]} 9. g4 {[%emt 0:04:14]} Bg6 {[%emt 0:00:54]} 10. h4 {[%emt 0:05:51]} h6 {[%emt 0:15:42]} 11. cxd5 {[%emt 0:12:32]} cxd5 {[%emt 0:09:56]} 12. Nge2 {[%emt 0:04:45]} Nc6 {[%emt 0:00:48]} 13. Na4 {[%emt 0:03:10]} Nd7 {[%emt 0:03:18]} 14. Kf2 {[%emt 0:03:39]} Bd8 {[%emt 0:07:09]} 15. Bd6 {[%emt 0:05:31]} Bc7 {[%emt 0:02:02]} 16. Ba3 {[%emt 0:01:55]} Rb8 {[%emt 0:06:06]} 17. Qc3 {[%emt 0:13:13]} Qd8 {[%emt 0:03:13]} 18. Qd2 {[%emt 0:06:13]} Na5 {[%emt 0:03:55]} 19. b3 {[%emt 0:02:23]} f6 {[%emt 0:03:08]} 20. Nf4 {[%emt 0:00:56]} Bxf4 {[%emt 0:03:02]} 21. exf4 {[%emt 0:00:07]} Kf7 {[%emt 0:01:14]} 22. Bd6 {[%emt 0:03:59]} Nc6 {[%emt 0:04:04]} 23. Bxb8 {[%emt 0:00:27]} Qxb8 {[%emt 0:00:02]} 24. h5 {[%emt 0:01:11]} Bh7 {[%emt 0:00:07]} 25. Nc5 {[%emt 0:05:01]} Nxc5 {[%emt 0:00:25]} 26. Rxc5 {[%emt 0:00:11]} Qd6 {[%emt 0:00:49]} 27. Rc1 {[%emt 0:03:04]} Rc8 {[%emt 0:01:31]} 28. Kg3 {[%emt 0:02:07]} Rc7 {[%emt 0:01:22]} 29. Bd3 {[%emt 0:01:08]} Bg8 {[%emt 0:00:32]} 30. Rhe1 {[%emt 0:00:58]} Ke7 {[%emt 0:01:09]} 31. Bg6 {[%emt 0:01:23]} Kd7 {[%emt 0:00:07]} 32. Qc3 {[%emt 0:03:00]} Rc8 {[%emt 0:00:44]} 33. Bd3 {[%emt 0:00:54]} Bf7 {[%emt 0:00:17]} 34. Rc2 {[%emt 0:00:41]} Rc7 {[%emt 0:01:24]} 35. Rec1 {[%emt 0:00:04]} Rc8 {[%emt 0:00:46]} 36. Qd2 {[%emt 0:00:34]} Qb8 {[%emt 0:01:49]} 37. Rc5 {[%emt 0:00:32]} Qa7 {[%emt 0:00:34]} 38. a4 {[%emt 0:01:05]} Qb6 {[%emt 0:01:46]} 39. b4 {[%emt 0:01:01]} Be8 {[%emt 0:00:34]} 40. Qc3 {[%emt 0:00:51]} Qd8 {[%emt 0:00:09]} 41. Bxa6 {[%emt 0:06:59]} 1-0

[Event "Frauenbundesliga 2023-24"]
[Site "Deizisau"]
[Date "2024.03.24"]
[Round "8.1"]
[White "Klek, Hanna Marie"]
[Black "Roessler, Ulrike"]
[Result "1-0"]
[ECO "B90"]
[WhiteElo "2287"]
[BlackElo "2100"]
[Annotator "RC"]
[PlyCount "73"]
[EventDate "2023.10.09"]
[EventType "team-tourn"]
[EventCountry "GER"]
[SourceTitle "playchess.com"]
[Source "ChessBase"]
[SourceQuality "1"]
[WhiteTeam "Schachfreunde Deizisau"]
[BlackTeam "SV Weißblau Allianz Leipzig"]
[TimeControl "40/5400+30:1800+30"]

1. e4 {[%emt 0:00:02]} c5 {[%emt 0:00:04]} 2. Nf3 {[%emt 0:00:18]} d6 {[%emt 0:00:04]} 3. d4 {[%emt 0:00:19]} cxd4 {[%emt 0:00:03]} 4. Nxd4 {[%emt 0:00:06]} Nf6 {[%emt 0:00:03]} 5. Nc3 {[%emt 0:00:08]} a6 {[%emt 0:00:03]} 6. Qd3 {[%emt 0:00:24]} g6 {[%emt 0:03:14]} 7. Bg5 {[%emt 0:00:28]} Bg7 {[%emt 0:00:06]} 8. O-O-O {[%emt 0:00:28]} O-O {[%emt 0:01:17]} 9. f4 {[%emt 0:00:22]} Bg4 {[%emt 0:02:15]} 10. Rd2 {[%emt 0:03:59]} Nc6 {[%emt 0:01:07]} 11. Nxc6 {[%emt 0:03:47]} bxc6 {[%emt 0:00:23]} 12. f5 {[%emt 0:00:34]} gxf5 {[%emt 0:05:49]} 13. exf5 {[%emt 0:00:56]} Qa5 {[%emt 0:00:06]} 14. Rf2 {[%emt 0:08:51]} Rab8 {[%emt 0:03:01]} 15. h3 {[%emt 0:06:16]} Bh5 {[%emt 0:23:33]} 16. g4 {[%emt 0:05:22]} Nd5 {[%emt 0:03:28]} 17. Bd2 {[%emt 0:06:52]} Nb4 {[%emt 0:08:02]} 18. Qe3 {[%emt 0:07:41]} Bxc3 {[%emt 0:17:50]} 19. bxc3 {[%emt 0:01:31]} Qxa2 {[%emt 0:00:04]} 20. Kd1 {[%emt 0:02:16]} Qxc2+ {[%emt 0:01:18]} 21. Ke2 {[%emt 0:10:06]} Rb5 {[%emt 0:03:21]} 22. gxh5 {[%emt 0:08:39]} Na2 {[%emt 0:03:45]} 23. Rg1+ {[%emt 0:11:15]} Kh8 {[%emt 0:00:05]} 24. Qd4+ {[%emt 0:00:31]} f6 {[%emt 0:02:30]} 25. c4 {[%emt 0:13:24]} Re5+ {[%emt 0:07:09]} 26. Kf3 {[%emt 0:00:48]} c5 {[%emt 0:06:15]} 27. Qd3 {[%emt 0:01:20]} Qd1+ {[%emt 0:01:07]} 28. Kg2 {[%emt 0:01:39]} Rg8+ {[%emt 0:07:15]} 29. Kh2 {[%emt 0:00:20]} Rxg1 {[%emt 0:00:47]} 30. Kxg1 {[%emt 0:00:01]} Qxh5 {[%emt 0:00:07]} 31. Rg2 {[%emt 0:03:18]} Qxf5 {[%emt 0:01:08]} 32. Qg3 {[%emt 0:00:28]} Qg6 {[%emt 0:00:17]} 33. Qb3 {[%emt 0:00:16]} Qe8 {[%emt 0:00:44]} 34. Qxa2 {[%emt 0:00:27]} Rh5 {[%emt 0:00:18]} 35. Qb3 {[%emt 0:00:48]} Qc8 {[%emt 0:00:36]} 36. Qg3 {[%emt 0:00:22]} Qf8 {[%emt 0:00:08]} 37. Be2 {[%emt 0:00:29]} 1-0

[Event "Frauenbundesliga 2023-24"]
[Site "Deizisau"]
[Date "2024.03.24"]
[Round "8.2"]
[White "Dwilewicz, Katarzyna"]
[Black "Mkrtchian, Lilit"]
[Result "1/2-1/2"]
[ECO "B18"]
[WhiteElo "2117"]
[BlackElo "2378"]
[Annotator "RC"]
[PlyCount "36"]
[EventDate "2023.10.09"]
[EventType "team-tourn"]
[EventCountry "GER"]
[SourceTitle "playchess.com"]
[Source "ChessBase"]
[SourceQuality "1"]
[WhiteTeam "SV Weißblau Allianz Leipzig"]
[BlackTeam "Schachfreunde Deizisau"]
[TimeControl "40/5400+30:1800+30"]

1. e4 {[%emt 0:00:04]} c6 {[%emt 0:00:11]} 2. d4 {[%emt 0:00:10]} d5 {[%emt 0:00:05]} 3. Nc3 {[%emt 0:00:04]} dxe4 {[%emt 0:00:25]} 4. Nxe4 {[%emt 0:00:07]} Bf5 {[%emt 0:00:18]} 5. Ng3 {[%emt 0:00:08]} Bg6 {[%emt 0:00:04]} 6. Nh3 {[%emt 0:01:54]} Nf6 {[%emt 0:00:17]} 7. c3 {[%emt 0:01:28]} e6 {[%emt 0:06:03]} 8. Nf4 {[%emt 0:02:58]} Bd6 {[%emt 0:00:21]} 9. h4 {[%emt 0:03:04]} Qc7 {[%emt 0:01:39]} 10. Qf3 {[%emt 0:02:55]} Nbd7 {[%emt 0:00:37]} 11. h5 {[%emt 0:03:01]} Bc2 {[%emt 0:00:26]} 12. h6 {[%emt 0:00:39]} gxh6 {[%emt 0:00:56]} 13. Bd3 {[%emt 0:05:17]} Bxd3 {[%emt 0:01:36]} 14. Nxd3 {[%emt 0:00:58]} Rg8 {[%emt 0:18:52]} 15. Bf4 {[%emt 0:14:00]} Rg6 {[%emt 0:08:14]} 16. Rxh6 {[%emt 0:12:26]} Bxf4 {[%emt 0:04:47]} 17. Rxg6 {[%emt 0:00:15]} hxg6 {[%emt 0:00:32]} 18. Qxf4 {[%emt 0:04:59]} Qxf4 {[%emt 0:05:50]} 1/2-1/2

[Event "Frauenbundesliga 2023-24"]
[Site "Deizisau"]
[Date "2024.03.24"]
[Round "8.3"]
[White "Koepke, Elena"]
[Black "Daemering, Katrin"]
[Result "1-0"]
[ECO "B22"]
[WhiteElo "2236"]
[BlackElo "1983"]
[Annotator "RC"]
[PlyCount "61"]
[EventDate "2023.10.09"]
[EventType "team-tourn"]
[EventCountry "GER"]
[SourceTitle "playchess.com"]
[Source "ChessBase"]
[SourceQuality "1"]
[WhiteTeam "Schachfreunde Deizisau"]
[BlackTeam "SV Weißblau Allianz Leipzig"]
[TimeControl "40/5400+30:1800+30"]

1. e4 {[%emt 0:00:06]} c5 {[%emt 0:00:06]} 2. c3 {[%emt 0:00:08]} d6 {[%emt 0:01:18]} 3. d4 {[%emt 0:00:07]} cxd4 {[%emt 0:00:05]} 4. cxd4 {[%emt 0:00:05]} a6 {[%emt 0:00:21]} 5. Nf3 {[%emt 0:03:56]} Nf6 {[%emt 0:03:32]} 6. Nc3 {[%emt 0:00:25]} e6 {[%emt 0:01:21]} 7. Bd3 {[%emt 0:00:30]} Nc6 {[%emt 0:04:13]} 8. O-O {[%emt 0:01:37]} Be7 {[%emt 0:00:35]} 9. Be3 {[%emt 0:02:52]} O-O {[%emt 0:08:27]} 10. Rc1 {[%emt 0:01:42]} Bd7 {[%emt 0:06:59]} 11. h3 {[%emt 0:04:46]} Qa5 {[%emt 0:04:29]} 12. a3 {[%emt 0:06:42]} Rac8 {[%emt 0:08:46]} 13. Re1 {[%emt 0:04:03]} b5 {[%emt 0:08:12]} 14. e5 {[%emt 0:10:31]} Ne8 {[%emt 0:10:53]} 15. Ne4 {[%emt 0:26:28]} f6 {[%emt 0:11:07]} 16. exd6 {[%emt 0:04:52]} Nxd6 {[%emt 0:05:18]} 17. Nc5 {[%emt 0:01:37]} Nb8 {[%emt 0:09:24]} 18. Nxd7 {[%emt 0:10:57]} Nxd7 {[%emt 0:00:02]} 19. Bd2 {[%emt 0:00:12]} Rxc1 {[%emt 0:03:18]} 20. Qxc1 {[%emt 0:00:06]} Qb6 {[%emt 0:03:54]} 21. Rxe6 {[%emt 0:01:10]} Rc8 {[%emt 0:02:55]} 22. Qe1 {[%emt 0:00:47]} Bf8 {[%emt 0:00:43]} 23. Bf4 {[%emt 0:03:22]} Rc6 {[%emt 0:02:10]} 24. d5 {[%emt 0:01:29]} Rc8 {[%emt 0:00:27]} 25. Rxd6 {[%emt 0:01:57]} Bxd6 {[%emt 0:00:08]} 26. Qe6+ {[%emt 0:00:04]} Kh8 {[%emt 0:00:33]} 27. Qxd7 {[%emt 0:00:51]} Rd8 {[%emt 0:02:46]} 28. Qf5 {[%emt 0:00:20]} Kg8 {[%emt 0:00:52]} 29. Qxh7+ {[%emt 0:01:03]} Kf8 {[%emt 0:00:40]} 30. Be3 {[%emt 0:01:45]} Qb8 {[%emt 0:01:01]} 31. Bg6 {[%emt 0:01:06]} 1-0

[Event "Frauenbundesliga 2023-24"]
[Site "Deizisau"]
[Date "2024.03.24"]
[Round "8.4"]
[White "Schulz, Petra"]
[Black "Nebolsina, Vera"]
[Result "0-1"]
[ECO "C48"]
[WhiteElo "2006"]
[BlackElo "2209"]
[Annotator "RC"]
[PlyCount "72"]
[EventDate "2023.10.09"]
[EventType "team-tourn"]
[EventCountry "GER"]
[SourceTitle "playchess.com"]
[Source "ChessBase"]
[SourceQuality "1"]
[WhiteTeam "SV Weißblau Allianz Leipzig"]
[BlackTeam "Schachfreunde Deizisau"]
[TimeControl "40/5400+30:1800+30"]

1. e4 {[%emt 0:00:03]} e5 {[%emt 0:00:08]} 2. Nf3 {[%emt 0:00:16]} Nc6 {[%emt 0:00:07]} 3. Bb5 {[%emt 0:00:27]} Nf6 {[%emt 0:00:19]} 4. Nc3 {[%emt 0:01:13]} Nd4 {[%emt 0:01:57]} 5. Nxd4 {[%emt 0:12:52]} exd4 {[%emt 0:00:12]} 6. Ne2 {[%emt 0:00:06]} Nxe4 {[%emt 0:06:09]} 7. Nxd4 {[%emt 0:00:57]} Bc5 {[%emt 0:00:19]} 8. c3 {[%emt 0:17:04]} O-O {[%emt 0:06:17]} 9. O-O {[%emt 0:00:32]} d5 {[%emt 0:00:25]} 10. Nf3 {[%emt 0:12:17]} Bg4 {[%emt 0:02:00]} 11. Be2 {[%emt 0:02:04]} Bd6 {[%emt 0:07:42]} 12. d3 {[%emt 0:03:07]} Nc5 {[%emt 0:00:12]} 13. Bg5 {[%emt 0:02:06]} Qd7 {[%emt 0:00:30]} 14. Nd4 {[%emt 0:00:30]} Bxe2 {[%emt 0:00:30]} 15. Qxe2 {[%emt 0:00:30]} Rae8 {[%emt 0:00:30]} 16. Qf3 {[%emt 0:00:30]} Ne6 {[%emt 0:00:30]} 17. Nxe6 {[%emt 0:00:30]} fxe6 {[%emt 0:00:30]} 18. Qh3 {[%emt 0:00:30]} Rf5 {[%emt 0:00:30]} 19. Bh4 {[%emt 0:00:30]} Qf7 {[%emt 0:00:30]} 20. Bg3 {[%emt 0:00:30]} e5 {[%emt 0:00:30]} 21. Rae1 {[%emt 0:00:30]} Rf8 {[%emt 0:00:30]} 22. f3 {[%emt 0:00:30]} h5 {[%emt 0:00:30]} 23. d4 {[%emt 0:00:30]} e4 {[%emt 0:00:30]} 24. Bxd6 {[%emt 0:00:30]} cxd6 {[%emt 0:00:30]} 25. Qg3 {[%emt 0:00:30]} Qf6 {[%emt 0:00:30]} 26. Qh3 {[%emt 0:32:50]} Qf7 {[%emt 0:14:34]} 27. Qg3 {[%emt 0:01:45]} Qf6 {[%emt 0:00:12]} 28. Re3 {[%emt 0:01:05]} h4 {[%emt 0:03:14]} 29. Qf2 {[%emt 0:03:00]} h3 {[%emt 0:07:08]} 30. g3 {[%emt 0:00:05]} Rxf3 {[%emt 0:06:57]} 31. Rxf3 {[%emt 0:00:13]} exf3 {[%emt 0:00:08]} 32. Re1 {[%emt 0:03:38]} g5 {[%emt 0:01:01]} 33. Kf1 {[%emt 0:01:26]} Qf5 {[%emt 0:00:59]} 34. Qd2 {[%emt 0:01:45]} f2 {[%emt 0:02:46]} 35. Rd1 {[%emt 0:00:09]} Qf3 {[%emt 0:02:17]} 36. Qxg5+ {[%emt 0:00:31]} Kh7 {[%emt 0:00:06]} 0-1

[Event "Frauenbundesliga 2023-24"]
[Site "Deizisau"]
[Date "2024.03.24"]
[Round "8.5"]
[White "Valkova, Angelika"]
[Black "Just, Anita"]
[Result "1-0"]
[ECO "A85"]
[WhiteElo "2021"]
[BlackElo "1873"]
[Annotator "NA"]
[PlyCount "73"]
[EventDate "2023.10.09"]
[EventType "team-tourn"]
[EventCountry "GER"]
[SourceTitle "playchess.com"]
[Source "ChessBase"]
[SourceQuality "1"]
[WhiteTeam "Schachfreunde Deizisau"]
[BlackTeam "SV Weißblau Allianz Leipzig"]
[TimeControl "40/5400+30:1800+30"]

1. d4 {[%emt 0:00:25]} e6 {[%emt 0:00:05]} 2. c4 {[%emt 0:00:17]} f5 {[%emt 0:00:06]} 3. a3 {[%emt 0:01:10]} Nf6 {[%emt 0:00:30]} 4. Nc3 {[%emt 0:00:30]} Be7 {[%emt 0:00:30]} 5. Bf4 {[%emt 0:00:30]} d6 {[%emt 0:00:30]} 6. e3 {[%emt 0:00:30]} O-O {[%emt 0:00:30]} 7. Be2 {[%emt 0:00:30]} Nbd7 {[%emt 0:00:30]} 8. Nf3 {[%emt 0:00:30]} Ne4 {[%emt 0:00:30]} 9. Nxe4 {[%emt 0:00:30]} fxe4 {[%emt 0:00:30]} 10. Nd2 {[%emt 0:00:30]} d5 {[%emt 0:00:30]} 11. O-O {[%emt 0:00:30]} Bg5 {[%emt 0:00:30]} 12. Bg4 {[%emt 0:00:30]} Re8 {[%emt 0:00:30]} 13. Bg3 {[%emt 0:00:30]} Nf8 {[%emt 0:00:30]} 14. Qb3 {[%emt 0:00:30]} c6 {[%emt 0:00:30]} 15. Rae1 {[%emt 0:00:30]} a5 {[%emt 0:00:30]} 16. f3 {[%emt 0:00:30]} a4 {[%emt 0:00:30]} 17. Qc2 {[%emt 0:00:30]} exf3 {[%emt 0:00:30]} 18. Nxf3 {[%emt 0:00:30]} Bf6 {[%emt 0:00:30]} 19. Ne5 {[%emt 0:00:30]} Nd7 {[%emt 0:00:30]} 20. Bh5 {[%emt 0:00:30]} Rf8 {[%emt 0:00:30]} 21. Ng4 {[%emt 0:00:30]} Bh4 {[%emt 0:00:30]} 22. Rxf8+ {[%emt 0:00:30]} Nxf8 {[%emt 0:00:30]} 23. Qf2 {[%emt 0:00:30]} Bxg3 {[%emt 0:00:30]} 24. Qf7+ {[%emt 0:00:30]} Kh8 {[%emt 0:00:30]} 25. hxg3 {[%emt 0:00:30]} Bd7 {[%emt 0:00:30]} 26. Rf1 {[%emt 0:00:30]} e5 {[%emt 0:00:30]} 27. Nxe5 {[%emt 0:00:30]} Be6 {[%emt 0:00:30]} 28. Qxb7 {[%emt 0:00:30]} dxc4 {[%emt 0:00:30]} 29. Qxc6 {[%emt 0:00:30]} Bg8 {[%emt 0:00:30]} 30. Bf7 {[%emt 0:00:30]} Ra7 {[%emt 0:00:30]} 31. Bxg8 {[%emt 0:00:30]} Kxg8 {[%emt 0:00:30]} 32. Qxc4+ {[%emt 0:00:30]} Kh8 {[%emt 0:00:30]} 33. Nf7+ {[%emt 0:00:30]} Rxf7 {[%emt 0:00:30]} 34. Qxf7 {[%emt 0:00:30]} Ng6 {[%emt 0:00:30]} 35. Rc1 {[%emt 0:00:30]} Ne7 {[%emt 0:00:30]} 36. Rc5 {[%emt 0:00:30]} h6 {[%emt 0:00:30]} 37. Re5 {[%emt 0:00:30]} 1-0